{"text_format":"3","workbook":"xlsx","n_sheets":1,"sheets":["Sheet1"],"read":"whole","date_system":"1900"}

{"sheet":"Sheet1","index":0,"n_rows":315,"n_cols":7,"rows_kept":315,"merged":[[2,1,2,6]]}
[]
[]
[null,"STRUKTURA CENA"]
[]
[null,"R. Br.","Naziv pozicije","Jed. Mere","Količina","Jedinična cena bez PDV-a","Ukupan iznos bez PDV-a"]
[null,"I","TOPLOTNA PODSTANICA - viši temperaturni režim"]
[]
[null,1,"Isporuka i montaža toplotne pumpe  VODA-VODA CEGH V 76 sa izmenjivač toplote cev u cevi ili visokoefikasni izmenjivač toplote sa cevima u omotaču","kom",{"v":3,"d":"3.00"},null,{"$f":"SUM(E8*F8)","v":0}]
[{"$nulls":6},{"$f":"SUM(E9*F9)","v":0}]
[null,2,"Isporuka I montaža pumpe 4SR 12/13-N-PD (Pedrollo) ili odgovarajuća protok od 50-300 l/min , napor od 68-15.5 mVS","kom",{"v":1,"d":"1.00"},null,0]
[{"$nulls":6},0]
[null,3,"Isporuka i ugradnja cirkulacione pumpe UPS 40- 180 F GRUNDFOS ","kom",{"v":3,"d":"3.00"},null,0]
[null,null,"Prirubnica navojna DN 40/10-6/4\"","kom",{"v":6,"d":"6.00"},null,0]
[null,null,"Prirubnički set 40/10","kom",{"v":6,"d":"6.00"},null,0]
[{"$nulls":6},0]
[null,4,"Isporuka i ugradnja akumulacionog rezervoara (bafer) V-3000  lit CAS 3001-CENTRONETAL, ili odgovarajući","kom",{"v":1,"d":"1.00"},null,0]
[{"$nulls":6},0]
[null,5,"Ekspanzioni sud za instalaciju grejanja-hlađenja 150 lit.","kom",{"v":2,"d":"2.00"},null,0]
[{"$nulls":6},0]
[null,6,"CEV FLEKSI INOX DN25 (1\") AZ POKORNY za priključenje ekspanzionih sudova","m",{"v":3,"d":"3.00"},null,0]
[{"$nulls":6},0]
[null,7,"HOLENDER NAVRTKA za inox cevi 1\"","kom",{"v":4,"d":"4.00"},null,0]
[{"$nulls":6},0]
[null,8,"DUPLI NIPL 1\" MS","kom",{"v":4,"d":"4.00"},null,0]
[{"$nulls":6},0]
[null,9,"DIHTUNG klingeritni za INOX CEVI 1\"","kom",{"v":4,"d":"4.00"},null,0]
[{"$nulls":6},0]
[null,null,"Isporuka i ugradnja ventila za vodu  , dimenzija:",{"$nulls":3},0]
[{"$nulls":6},0]
[null,10,"R2” sa navojnim spojevima","kom",{"v":24,"d":"24.00"},null,0]
[null,11,"R1\"sa navojnim spojevima","kom",{"v":4,"d":"4.00"},null,0]
[null,12,"R3/4\"sa navojnim spojevima","kom",{"v":12,"d":"12.00"},null,0]
[{"$nulls":6},0]
[null,13,"Isporuka i ugradnja hvatača nečistoće, dimenzija: R2” sa navojnim spojevima","kom",{"v":6,"d":"6.00"},null,0]
[{"$nulls":6},0]
[{"$nulls":6},0]
[null,14,"Isporuka i ugradnja nepovratnih ventila , dimenzija: R2”","kom",{"v":1,"d":"1.00"},null,0]
[{"$nulls":6},0]
[null,15,"Nabavka i montaža PPR/FG NP 20 cevi i fitinga za izradu instalacije toplotne podstanice prečnika Ø75x10.3","m",{"v":70,"d":"70.00"},null,0]
[null,16,"MUF PP-RC prelaz DN 75-2 1/2\" UN","kom",{"v":12,"d":"12.00"},null,0]
[null,17,"Pomoćni materijal potreban za montažu cevne mreže (lukovi, T komadi, redukcije, zaptivni) 50% od stavke cevi",null,{"v":0.5,"d":"0.50"},null,0]
[{"$nulls":6},0]
[null,18,"Nabavka i montaža PE cevi i fitinga za izradu instalacije primarnog kruga toplotne pumpe PE100- d75","m",{"v":150,"d":"150.00"},null,0]
[{"$nulls":6},0]
[null,19,"Pomoćni materijal potreban za montažu cevne mreže (lukovi, T komadi, redukcije, zaptivni materijali i sl.) 50% od stavke cevi",null,{"v":0.5,"d":"0.50"},null,0]
[null,null,"Nabavka i montaža Zn fitinga za izradu instalacije toplotne podstanice",{"$nulls":3},0]
[null,20,"Holender 2\" Zn","kom",{"v":9,"d":"9.00"},null,0]
[null,21,"DUPLI NIPL 2 1/2\" Zn","kom",{"v":12,"d":"12.00"},null,0]
[null,22,"DUPLI NIPL 2\" Zn","kom",{"v":36,"d":"36.00"},null,0]
[null,23,"DUPLI NIPL 6/4\" Zn","kom",{"v":6,"d":"6.00"},null,0]
[null,24,"DUPLI NIPL 1\" Zn","kom",{"v":4,"d":"4.00"},null,0]
[null,25,"DUPLI NIPL3/4\" Zn","kom",{"v":12,"d":"12.00"},null,0]
[null,26,"KOLENO 2\" Zn","kom",{"v":20,"d":"20.00"},null,0]
[null,27,"T-komad 2 \" Zn","kom",{"v":12,"d":"12.00"},null,0]
[null,28,"T-komad 1 \" Zn","kom",{"v":2,"d":"2.00"},null,0]
[null,29,"Redukcija Zn 2 1/2\"-2\"","kom",{"v":12,"d":"12.00"},null,0]
[null,30,"Redukcija Zn 2 \"-6/4\"","kom",{"v":6,"d":"6.00"},null,0]
[null,31,"Redukcija Zn 2 \"-3/4\"","kom",{"v":12,"d":"12.00"},null,0]
[null,32,"Izolacija cevovoda izolacijon sa parnom branom Tip: gumaflex 76x9mm","m",{"v":60,"d":"60.00"},null,0]
[]
[null,null,"UKUPNO I",{"$nulls":3},{"$f":"SUM(G8:G59)","v":0}]
[]
[null,"II","TOPLOTNA PODSTANICA - grejanje bazenske vode"]
[]
[null,1,"Isporuka i montaža toplotne pumpe  VODA-VODA CEGH - 105 sa izmenjivačima toplote cev u cevi ili visokoefikasni izmenjivač toplote sa cevima u omotaču","kom",{"v":2,"d":"2.00"},null,{"$f":"SUM(E65*F65)","v":0}]
[{"$nulls":6},{"$f":"SUM(E66*F66)","v":0}]
[null,2,"Isporuka I montaža pumpe HF 5A (Pedrollo) ili odgovarajuća protok od 100-600 l/min , napor od 13.2-6 mVS","kom",{"v":2,"d":"2.00"},null,0]
[{"$nulls":6},0]
[null,3,"Isporuka i ugradnja trokrakog ventila za održavanje konstantne temperature vode prema toplotnoj pumpi, sledećih karakteristika DN 50,KVs=40m3/h tip 3F50 DN50 ESBE, Italija","kom",{"v":2,"d":"2.00"},null,0]
[{"$nulls":6},0]
[null,4,"Elektromotorni pogon ventila, napajanje 230V\ttip P96, ESBE","kom",{"v":2,"d":"2.00"},null,0]
[{"$nulls":6},0]
[null,5,"Isporuka i ugradnja cirkulacione pumpe GRUNDFOS UPS 40-120 F GRUNDFOS, sa kontraprirubnicama","kom",{"v":2,"d":"2.00"},null,0]
[{"$nulls":6},0]
[null,6,"Prirubnica navojna DN 40/10-6/4\"","kom",{"v":4,"d":"4.00"},null,0]
[{"$nulls":6},0]
[null,7,"Prirubnički set 40/10","kom",{"v":4,"d":"4.00"},null,0]
[null,null,"Isporuka i ugradnja ventila za vodu , dimenzija:",{"$nulls":3},0]
[null,8,"R2\"sa navojnim spojevima","kom",{"v":6,"d":"6.00"},null,0]
[null,9,"R 2 1/2\"sa navojnim spojevima","kom",{"v":4,"d":"4.00"},null,0]
[null,10,"R3/4\"sa navojnim spojevima","kom",{"v":8,"d":"8.00"},null,0]
[null,11,"Isporuka i ugradnja hvatača nečistoće, dimenzija: R2” sa navojnim spojevima","kom",{"v":4,"d":"4.00"},null,0]
[null,null,"Nabavka i montaža Zn fitinga za izradu instalacije toplotne podstanice",{"$nulls":3},0]
[null,12,"Holender 2\" Zn","kom",{"v":4,"d":"4.00"},null,0]
[null,13,"DUPLI NIPL 2 1/2\" Zn","kom",{"v":4,"d":"4.00"},null,0]
[null,14,"DUPLI NIPL 2\" Zn","kom",{"v":28,"d":"28.00"},null,0]
[null,15,"DUPLI NIPL 6/4\" Zn","kom",{"v":4,"d":"4.00"},null,0]
[null,16,"DUPLI NIPL3/4\" Zn","kom",{"v":8,"d":"8.00"},null,0]
[null,17,"T-komad 2 \" Zn","kom",{"v":8,"d":"8.00"},null,0]
[null,18,"Redukcija Zn 3\"-2\"","kom",{"v":8,"d":"8.00"},null,0]
[null,19,"Redukcija Zn 2 \"-6/4\"","kom",{"v":4,"d":"4.00"},null,0]
[null,20,"Redukcija Zn 2 \"-3/4\"","kom",{"v":12,"d":"12.00"},null,0]
[null,21,"KOLENO 2\" Zn","kom",{"v":16,"d":"16.00"},null,0]
[null,22,"Isporuka i ugradnja automatskih odzračnih ventila sa nepovratnim ventilom","kom",{"v":2,"d":"2.00"},null,0]
[null,23,"Nabavka i montaža PPR/FG cevi  NP 20, ɸ75x10.3 i fitinga za izradu instalacije toplotne podstanice","m",{"v":40,"d":"40.00"},null,0]
[null,null,"MUF PP-RC prelaz DN 75-2 1/2\" UN","kom",{"v":8,"d":"8.00"},null,0]
[null,24,"Pomoćni materijal potreban za montažu cevne mreže (cevne obujm.\nlukovi, T komadi,redukcije, zaptivni materijal i sl.)\n50% od stavke cevi",null,{"v":0.5,"d":"0.50"},null,0]
[null,25,"Nabavka i montaža PE cevi i fitinga za izradu instalacije primarnog kruga toplotne pumpe PE100- d63","m",{"v":50,"d":"50.00"},null,0]
[null,26,"Pomoćni materijal potreban za montažu cevne mreže (cevne obujm.\nlukovi, T komadi,redukcije, zaptivni materijal i sl.)\n50% od stavke cevi",null,{"v":0.5,"d":"0.50"},null,0]
[null,27,"Izolacija cevovoda izolacijom sa parnom branom Tip: Gumaflex 76x9mm","m",{"v":40,"d":"40.00"},null,0]
[null,28,"Fazonski delovi i armatura za priključenje cevovoda toplotne\npumpe na bazenski cevovod","kg",{"v":650,"d":"650.00"},null,0]
[null,29,"Fazonski delovi i armatura za priključenje primarnog kruga\ntoplotne pumpe na cevovod otpadne bazenske vode","kg",{"v":250,"d":"250.00"},null,0]
[null,30,"Termostatska regulacija gejanja ","pauš",{"v":1,"d":"1.00"},null,0]
[]
[null,null,"UKUPNO II",{"$nulls":3},{"$f":"SUM(G65:G103)","v":0}]
[]
[null,"III","GREJANJE BAZENSKOG PROSTORA"]
[]
[null,1,"Isporuka i montaža topovodnog izmenjivača u sistemu olimpijskog bazena, sa izradom difuzora za priključenj na\notvot za ubacivanje vazduha iz postojećeg termogeneratora\nTip: TOP KFW - TOP HW - 3227 - 25 - 2000 - 64 RL - 2 R -40K(Topiz)\nProtok vazduha: 33000m³/h\n∆p [Pa] : 30\nRežim vode: 75/60°C qw[m³/h]: 15.6\nQ [kW] :275","kom",{"v":2,"d":"2.00"},null,{"$f":"SUM(E109*F109)","v":0}]
[{"$nulls":6},{"$f":"SUM(E110*F110)","v":0}]
[null,2,"Isporuka i ugradnja cirkulacione pumpe UPS 50- 120 F GRUNDFOS, sa kontraprirubnicama","kom",{"v":2,"d":"2.00"},null,0]
[{"$nulls":6},0]
[null,3,"Prirubnica navojna DN 50/10-2\"","kom",{"v":4,"d":"4.00"},null,0]
[{"$nulls":6},0]
[null,4,"Prirubnički set 50/10","kom",{"v":4,"d":"4.00"},null,0]
[{"$nulls":6},0]
[null,5,"Nabavka i montaža PPR/FG NP 20 cevi i fitinga za izradu instalacije toplotne podstanice\nprečnika Ø90x12.3","m",{"v":50,"d":"50.00"},null,0]
[{"$nulls":6},0]
[null,6,"MUF PP-RC prelaz DN 90-3\" UN","kom",{"v":4,"d":"4.00"},null,0]
[{"$nulls":6},0]
[null,7,"Pomoćni materijal potreban za\nmontažu cevne mreže (cevne obujm.\nlukovi, T komadi,redukcije, zaptivni materijal i sl.)\n50% od stavke cevi",null,{"v":0.5,"d":"0.50"},null,0]
[{"$nulls":6},0]
[null,8,"Izolacija cevovoda izolacijom sa parnom branom, Tip: Gumaflex 90x9mm","m",{"v":50,"d":"50.00"},null,0]
[{"$nulls":6},0]
[null,9,"Isporuka i ugradnja ventila za vodu , dimenzija: R 2 1/2 \"sa navojnim spojevima","kom",{"v":8,"d":"8.00"},null,0]
[null,null,"Isporuka i ugradnja hvatača nečistoće, dimenzija:\nR2 1/2\"sa navojnim spojevima","kom",{"v":2,"d":"2.00"},null,0]
[null,null,"Nabavka i montaža Zn fitinga za izradu instalacije",{"$nulls":3},0]
[null,10,"Holender 2.5\" Zn","kom",{"v":8,"d":"8.00"},null,0]
[{"$nulls":6},0]
[null,11,"KOLENO 2 1/2\" Zn","kom",{"v":12,"d":"12.00"},null,0]
[{"$nulls":6},0]
[null,12,"DUPLI NIPL 2 1/2\" Zn","kom",{"v":20,"d":"20.00"},null,0]
[{"$nulls":6},0]
[null,13,"Izrada difuzora od pocinkovanog lima-zaštita plastifikacijom,za priključenje toplovodnog izmenjivača na vazdušne\nkomore","kg",{"v":200,"d":"200.00"},null,0]
[{"$nulls":6},0]
[null,14,"Termostaska regulacija grejanja bazenskog prostora","pauš",{"v":1,"d":"1.00"},null,0]
[]
[null,null,"UKUPNO III",{"$nulls":3},{"$f":"SUM(G109:G136)","v":0}]
[]
[null,"IV","GREJANJE POSLOVNOG PROSTORA I SANITARNE VODE"]
[]
[null,1,"Isporuka i ugradnja bojlera akumulacioni 1000Lit. (sa 2 izmenjivača) stojeci EMAJLIRANI BOSCH","kom",{"v":1,"d":"1.00"},null,{"$f":"SUM(E142*F142)","v":0}]
[{"$nulls":6},{"$f":"SUM(E143*F143)","v":0}]
[null,2,"Ekspanzioni sud za instalaciju sanitarne vode 50 lit","kom",{"v":1,"d":"1.00"},null,0]
[{"$nulls":6},0]
[null,3,"Isporuka i ugradnja cirkulacione pumpe UPS 25- 80(MF) GRUNDFOS, sa holenderima","kom",{"v":2,"d":"2.00"},null,0]
[{"$nulls":6},0]
[null,4,"Nabavka i montaža PPR/FG NP 20 cevi i fitinga za izradu instalacije toplotne podstanice\nprečnika Ø50x6.9","m",{"v":140,"d":"140.00"},null,0]
[{"$nulls":6},0]
[null,5,"Pomoćni materijal potreban za\nmontažu cevne mreže (cevne obujm.\nlukovi, T komadi,redukcije, zaptivni materijal i sl.) 50% od stavke cevi",null,{"v":0.5,"d":"0.50"},null,0]
[{"$nulls":6},0]
[null,6,"MUF PP-RC prelaz DN 50-6/4\" UN","kom",{"v":8,"d":"8.00"},null,0]
[{"$nulls":6},0]
[null,7,"Isporuka i ugradnja ventila za vodu , dimenzija:",{"$nulls":3},0]
[null,null,"R 5/4\"sa navojnim spojevima","kom",{"v":8,"d":"8.00"},null,0]
[null,null,"R 1\"sa navojnim spojevima","kom",{"v":3,"d":"3.00"},null,0]
[null,null,"R 3/4\"sa navojnim spojevima","kom",{"v":3,"d":"3.00"},null,0]
[{"$nulls":6},0]
[null,8,"Izolacija cevovoda izolacijom sa parnom branom, Tip: Gumaflex 48x9mm","m",{"v":140,"d":"140.00"},null,0]
[{"$nulls":6},0]
[null,9,"Ventil sigurnosti 3/4\"-3bar","kom",{"v":2,"d":"2.00"},null,0]
[{"$nulls":6},0]
[null,null,"Nabavka i montaža Zn fitinga za izradu instalacije",{"$nulls":3},0]
[null,10,"Holender 5/4\" Zn","kom",{"v":2,"d":"2.00"},null,0]
[null,11,"DUPLI NIPL 5/4\" Zn","kom",{"v":10,"d":"10.00"},null,0]
[null,12,"DUPLI NIPL 1\" Zn","kom",{"v":4,"d":"4.00"},null,0]
[null,13,"DUPLI NIPL 3/4\" Zn","kom",{"v":8,"d":"8.00"},null,0]
[null,14,"T-komad 1 \" Zn","kom",{"v":8,"d":"8.00"},null,0]
[null,15,"Redukcija Zn 5/4\"-1\"","kom",{"v":4,"d":"4.00"},null,0]
[null,16,"KOLENO 5/4\" Zn","kom",{"v":10,"d":"10.00"},null,0]
[{"$nulls":6},0]
[null,17,"Priključenje postojeće instalacije grejanja i sanitarne vodena topltnu podstanicu višeg temoeraturnog režima\t","pauš",{"v":1,"d":"1.00"},null,0]
[]
[null,null,"UKUPNO IV",{"$nulls":3},{"$f":"SUM(G142:G172)","v":0}]
[]
[null,"V","TERMIČKA IZOLACIJA PLAŠTA BAZENA"]
[]
[null,1,"Isporuka i ugradnja samolepive pločaste izolacije ARMAFLEX ACE/ACE debljine 25mm","m2",{"v":270,"d":"270.00"},null,{"$f":"SUM(E178*F178)","v":0}]
[]
[null,null,"UKUPNO V",{"$nulls":3},{"$f":"SUM(G178)","v":0}]
[]
[null,"VI","SOLARNA ELEKTRANA"]
[]
[null,null,"FN Paneli i invertori"]
[]
[null,1,"Nabavka,  isporuka i montaža  fotonaponskih panela,  snage 560 Wp, bifacijalni- tip HD144N proizvođača  NTOPCon Tecnology  ili  sličan","kom",{"v":80,"d":"80.00"},null,{"$f":"SUM(E186*F186)","v":0}]
[{"$nulls":6},{"$f":"SUM(E187*F187)","v":0}]
[null,2,"Nabavka, isporuka i montaža Invertora naznačene snage 6kW, tip SN6.OPT, proizvođać SINENG ELECTRIC CO LTD ili sličan","kom",{"v":10,"d":"10.00"},null,0]
[{"$nulls":6},0]
[null,null,"DC razvod",{"$nulls":3},0]
[{"$nulls":6},0]
[null,3,"Nabavka, isporuka i montaža solamog kabla, crne i crvene boje namotan na trombl, namenjen za outdoor instalaciju i upotrebu za solarne sisteme, poprečnog preseka 6mm2","m",{"v":500,"d":"500.00"},null,0]
[{"$nulls":6},0]
[null,4,"Nabavka, isporuka I montaža PVC cevi za polaganje DC kablova. DC kablovi se polažu pojedinačno u DC cevi","m",{"v":500,"d":"500.00"},null,0]
[{"$nulls":6},0]
[null,5,"Ostali sitan materijal","pauš",{"v":1,"d":"1.00"},null,0]
[{"$nulls":6},0]
[null,null,"AC razvod, AC kablovi",{"$nulls":3},0]
[{"$nulls":6},0]
[null,6,"Nabavka, isporuka i montaža kabla za vezu invertora sa RO – FNE . Za kablovsku vezu predviđeni kablovi NAYY 4x2,5 mm2. Prosečna dužina 50m. ","m",{"v":500,"d":"500.00"},null,0]
[{"$nulls":6},0]
[null,7,"Nabavka, isporuka i montaža kabla  za spoj RO-FNE na NN razvod u RO TOP PUMPE. Za kablovsku  vezu predviđeno   je polaganje - NA2XY (XPOO-A) 4x150mm2    \n+ NYY (PP00-Y) 1X120mm2","m",{"v":190,"d":"190.00"},null,0]
[{"$nulls":6},0]
[null,8,"Ostali sitan materijal","pauš",{"v":1,"d":"1.00"},null,0]
[{"$nulls":6},0]
[null,9,"Razvodni ormari                              Nabavka, isporuka i montaža razvodnog ormara RO-FNE",{"$nulls":3},0]
[{"$nulls":6},0]
[null,9.1,"Razvodni ormar I montažna ploča, npr. Spacial SM Schneider Electric","kom",{"v":1,"d":"1.00"},null,0]
[null,9.2,"Glavne sabimice GRO SE","m",{"v":2,"d":"2.00"},null,0]
[{"$nulls":6},0]
[null,9.3,"Rastavna osiguračka sklopka sa nazivnom strujom osigurača 16 A, 3p, npr. TeSys GS Schneider Electric","kom",{"v":10,"d":"10.00"},null,0]
[{"$nulls":6},0]
[null,9.4,"Rastavna osiguracka sklopka sa nazivnom strujom osigurača 400 A, 3p, npr. TeSys GS Schneider Electric","kom",{"v":1,"d":"1.00"},null,0]
[{"$nulls":6},0]
[null,9.5,"Prekidač 250 A, 4p, npr. ComPacT NSX Schneider Electric","kom",{"v":1,"d":"1.00"},null,0]
[{"$nulls":6},0]
[null,9.6,"Odvodnici prenapona, npr. IPRD 40 3P+N Schneider Electric","kom",{"v":3,"d":"3.00"},null,0]
[{"$nulls":6},0]
[null,9.7,"Automatski minijatumi prekidač 6 A, 1p – za upravljačke krugove, npr. Acti9 iC60N, Schneider Electric","kom",{"v":8,"d":"8.00"},null,0]
[{"$nulls":6},0]
[null,9.8,"Automatski minijaturni prekidač 40 A. 1p – za odvodnike prenapona,  npr. Acti9 iC60N, Schneider Electric","kom",{"v":3,"d":"3.00"},null,0]
[{"$nulls":6},0]
[null,9.9,"DOLD RP 9800, Voltage and Frequency Monitor","kom",{"v":1,"d":"1.00"},null,0]
[{"$nulls":6},0]
[null,"9.10","Schneider Electric PM3255, multimetar","kom",{"v":1,"d":"1.00"},null,0]
[{"$nulls":6},0]
[null,9.11,"Šajda MPK-13-0","kom",{"v":1,"d":"1.00"},null,0]
[{"$nulls":6},0]
[null,9.12,"Ostali sitni materijal","pauš",{"v":1,"d":"1.00"},null,0]
[{"$nulls":6},0]
[null,10,"ORMAR MERENJA  Isporuka i montaža ormara merenja",{"$nulls":3},0]
[{"$nulls":6},0]
[null,"10.1","Razvodni ormar i montažna ploča","kom",{"v":1,"d":"1.00"},null,0]
[{"$nulls":6},0]
[null,"10.2","Strujni merni transformatori, prenosni odnos 200/5A","kom",{"v":3,"d":"3.00"},null,0]
[{"$nulls":6},0]
[null,"10.3","Trofazno dvosmerno brojilo 3x230/400V, 5A","kom",{"v":1,"d":"1.00"},null,0]
[{"$nulls":6},0]
[null,"10.4","Šajda MPK-13-0","kom",{"v":1,"d":"1.00"},null,0]
[{"$nulls":6},0]
[null,"10.5","Ostali sitni materijal","pauš",{"v":1,"d":"1.00"},null,0]
[{"$nulls":6},0]
[null,null,"Daljinsko  praćenje  I kontrola  rada elektrane",{"$nulls":3},0]
[{"$nulls":6},0]
[null,"11","Uredaj za monitoring i kontrolu rada elektrane Data logger BLUE'LOG XC, proizvođač  Meteocontrol","kom",{"v":1,"d":"1.00"},null,0]
[null,"12","Kablovi, montaza, spajanje i parametriranje uredaja Sistema za kontrolu rada elektrane","kompl.",{"v":1,"d":"1.00"},null,0]
[null,"13","STP komunikacioni kabl za vezu invertora i Data Logger-a","m",{"v":150,"d":"150.00"},null,0]
[{"$nulls":6},0]
[null,null,"Uzemljenje i izjednačavanje potencijala",{"$nulls":3},0]
[{"$nulls":6},0]
[null,"14","lsporuka i montaža P/F kabla za izradu spojeva za izjednačavanje potencijala – galvansko izjednačavanje potencijala na krovu, te uzemljenje svih metalnih masa","kompl.",{"v":1,"d":"1.00"},null,{"$f":"SUM(E251*F251)","v":0}]
[{"$nulls":6},0]
[null,null,"Gromobramska zaštita",{"$nulls":3},0]
[{"$nulls":6},0]
[null,"15","lnstalacija opreme za gromobransku zaštitu -  štapne\nhvataljke za zastitu postrojenja od udara groma -\npostojeća instalacija na susednom objektu","kompl.",{"v":1,"d":"1.00"},null,0]
[{"$nulls":6},0]
[null,null,"Testiranja, ispitivanja, puštanje solarne elektrane u rad",{"$nulls":3},0]
[{"$nulls":6},0]
[null,"16","Električna merenja nakon izgradnje solarne elektrane (otpor izolacije, otpor uzemljenja, merenje struja i napona stringova, merenje previsokog napona dodira) I puštanje solarne elektrane u rad","kompl.",{"v":1,"d":"1.00"},null,0]
[{"$nulls":6},0]
[null,null,"Radovi na izgradnji solarne elektrane",{"$nulls":3},0]
[{"$nulls":6},0]
[null,"17","Elektromontažni radovi na izgradnji solarne elektrane, komplet sa puštanjem u funkcionalni rad i izdavanjem potrebnih atesta i garancija montiranje opreme","kompl.",{"v":1,"d":"1.00"},null,0]
[{"$nulls":6},0]
[{"$nulls":6},0]
[{"$nulls":6},0]
[null,"18","KABLOVSKI VOD",{"$nulls":3},0]
[{"$nulls":6},0]
[null,"18.1","lskop  rova  u  zemlji  treće kategorije    dimenzije 0,8x0,6x255m i zatrpavanjem rova nakon polaganja kabela sa odnošenjem viška zemlje na deponiju","m3",{"v":122.4,"d":"122.40"},null,0]
[null,"18.2","Polaganje PVC PE 11Omm podbušivanjem, komplet sa kopanjem upornih jama, dovozom i montažom mašine za podbušivanje, zatrpavanjem i odnošenjem viška zemlje na deponiju","m",{"v":26,"d":"26.00"},null,0]
[null,"18.3","Nabavka, isporuka i polaganje kabla XPOO-AS 4x150mm2 u rov od kablovskih spojnica do KPK Kabel položiti vijugavo, dodato 2% na dužinu kabela","m",{"v":200,"d":"200.00"},null,0]
[null,"18.4","Nabavka, isporuka i polaganje kabla XPOO-AS 4x150mm2   u prethodno pripremljene plastične cevi, uvod u KPK ormare","m",{"v":26,"d":"26.00"},null,0]
[null,"18.5","Suvo otvaranje, priprema i povezivanje kablovskog voda u KPK, NN ormanu, uvezivanje klemama, oznaka i sl.","kom",{"v":16,"d":"16.00"},null,0]
[null,"18.6","Kablovske oznake. Ugradnja betonskih temelja sa mesinganom pločicom,na kojoj je utisnuta oznaka za ukrštanje, trasu i skretanje trase EE kabela",{"$nulls":3},0]
[null,null,"Kabel oznaka tipa KB.OZ-40- TRASA KABELA","kom",{"v":3,"d":"3.00"},null,0]
[null,null,"Kabel oznaka tipa KB.OZ-50- KRAJEVI KABLOVSKIH CEVI","kom",{"v":6,"d":"6.00"},null,0]
[null,"18.7","Pozor traka. Na traci je upisano „PAŽNJA - ELEKTRO KABEL\". Postavlja se na dubini od 40cm od kote terena","m",{"v":200,"d":"200.00"},null,0]
[{"$nulls":6},0]
[null,null,"ČELIČNA KONSTRUKCIJA",{"$nulls":3},0]
[{"$nulls":6},0]
[null,"19","Nabavka, isporuka i montaža trakera sa montiranim aluminijumskim profilima za postavljanje solarnih panela. Montaža sa svim priključnim elementima, FIX pro dodacima, podnim letvama, balastom, prohromskim šrafovima i ostalim elementima za kompletno spajanje. Konstrukciju montirati u prethodno pripremljene temelje. Komplet sa montažom, angažovanjem građevinske operative i izradom uzemljenja objekta","kom",{"v":10,"d":"10.00"},null,0]
[]
[null,null,"UKUPNO VI",{"$nulls":3},{"$f":"SUM(G186:G281)","v":0}]
[]
[null,"VII","OSTALI RADOVI"]
[]
[null,"1","Probijanje otvora kroz zidove i međuspratnu konstrukciju sa montažom štucni od rebrastih PVC cevi na razvodne cevi na mestima prodora","kom",{"v":20,"d":"20.00"},null,{"$f":"SUM(E287*F287)","v":0}]
[{"$nulls":6},{"$f":"SUM(E288*F288)","v":0}]
[null,"2","Hladna proba instalacijevodenim pritiskom od 5 bar. u trajanju od dva sata","pauš.",{"v":1,"d":"1.00"},null,0]
[{"$nulls":6},0]
[null,"3","Topla proba instalacije sa regulacijom cevne mreže","pauš.",{"v":1,"d":"1.00"},null,0]
[{"$nulls":6},0]
[null,"4","Pripremno završni radovi","pauš.",{"v":1,"d":"1.00"},null,0]
[{"$nulls":6},0]
[null,"5","Transportni troškovi i ostali nepredviđeni radovi","pauš.",{"v":1,"d":"1.00"},null,0]
[]
[null,null,"UKUPNO VII",{"$nulls":3},{"$f":"SUM(G287:G295)","v":0}]
[]
[null,null,"REKAPITULACIJA"]
[]
[null,"I","TOPLOTNA PODSTANICA - viši temperaturni režim",{"$nulls":3},{"$f":"SUM(G61)","v":0}]
[]
[null,"II","TOPLOTNA PODSTANICA - grejanje bazenske vode",{"$nulls":3},{"$f":"SUM(G105)","v":0}]
[]
[null,"III","KALORIFERSKO GREJANJE  BAZENSKOG PROSTORA",{"$nulls":3},{"$f":"SUM(G138)","v":0}]
[]
[null,"IV","GREJANJE POSLOVNOG PROSTORA I SANITARNE VODE ",{"$nulls":3},{"$f":"SUM(G174)","v":0}]
[]
[null,"V","TERMIČKA IZOLACIJA PLAŠTA BAZENA",{"$nulls":3},{"$f":"SUM(G180)","v":0}]
[]
[null,"VI","SOLARNA ELEKTRANA",{"$nulls":3},{"$f":"SUM(G283)","v":0}]
[]
[null,"VII","OSTALI RADOVI",{"$nulls":3},{"$f":"SUM(G297)","v":0}]
[]
[null,null,"UKUPNO BEZ PDV-a:",{"$nulls":3},{"$f":"SUM(G301:G313)","v":0}]